bitfinex-derivatives/quotes_ETHF0:USTF0_20241230
["timestamp","ask_amount","ask_price","bid_price","bid_amount"]
[1735550953382,3.43769992,3419.8,3419.3,3.2078]
[1735550953592,0.29296,3419.4,3419.3,3.2078]
[1735550955086,3.2078,3419.4,3419.0,4.58729643]
[1735550955288,0.29298,3419.1,3419.0,4.58729643]
[1735550955785,2.63249848,3419.1,3419.0,4.58729643]
[1735550955993,2.63249848,3419.1,3419.0,2.34099643]
[1735550956196,2.33951848,3419.1,3418.9,6.88094465]
[1735550956394,3.50079,3419.0,3418.9,6.88094465]
[1735550958494,3.94048775,3419.0,3417.9,1.178]
[1735550958691,3.2078,3418.6,3417.9,1.178]
[1735550958895,0.29307,3418.2,3417.9,1.178]
[1735550959294,0.29307,3418.1,3417.9,1.178]
[1735550959502,1.3351,3418.5,3417.9,1.178]
[1735550959503,0.29308,3418.0,3417.9,1.178]
[1735550959806,1.3351,3418.5,3417.9,1.178]
[1735550959807,0.29307,3418.1,3417.9,1.178]
[1735550960893,1.3351,3418.5,3417.9,1.178]
[1735550961604,0.29306,3418.2,3417.9,1.47108]
[1735550962004,0.29307,3418.1,3417.9,1.47108]
[1735550962205,0.29308,3418.0,3417.9,1.178]
[1735550963305,1.3351,3418.5,3417.9,1.178]
[1735550963608,0.29307,3418.1,3417.9,1.178]
[1735550964695,1.3351,3418.5,3417.9,1.178]
[1735550965103,0.29307,3418.1,3417.9,1.178]
[1735550965604,1.3351,3418.5,3417.9,1.178]
[1735550965809,0.29308,3418.0,3417.9,1.178]
[1735550966106,1.3351,3418.5,3417.9,1.178]
[1735550966309,0.29307,3418.1,3417.9,1.178]
[1735550966610,0.29306,3418.2,3417.9,1.47108]
[1735550969914,1.3351,3418.5,3417.9,1.178]
[1735550970107,0.4357,3418.5,3417.9,3.51751848]
[1735550970312,0.4357,3418.5,3418.4,0.29304]
[1735550970506,0.29302,3418.7,3418.4,0.29304]
[1735550970811,2.58977614,3418.8,3418.5,0.29303]
[1735550971617,0.29301,3418.8,3418.5,0.29303]
[1735550971805,0.4394,3418.9,3418.7,0.29301]
[1735550972113,0.4394,3418.9,3418.8,0.29301]
[1735550972810,0.29299,3419.1,3418.8,0.29301]
[1735550974210,0.4394,3419.2,3418.7,3.2078]
[1735550974608,0.293,3419.0,3418.7,3.50081]
[1735550975311,0.4394,3419.2,3418.8,0.29301]
[1735550975514,0.29299,3419.0,3418.7,3.50081]
[1735550977214,0.293,3418.9,3418.7,3.2078]
[1735550977413,0.293,3418.9,3418.7,3.50081]
[1735550977605,0.4394,3419.2,3418.7,3.2078]
[1735550977806,0.29301,3418.8,3418.5,0.29303]
[1735550978203,0.4398,3418.7,3418.4,2.0342]
[1735550978417,0.29303,3418.6,3418.4,2.0342]
[1735550978915,1.3213,3418.7,3418.4,2.0342]
[1735550979113,2.29676614,3419.1,3418.4,2.0342]
[1735550979408,0.29299,3419.0,3418.7,0.29301]
[1735550979614,0.293,3418.9,3418.7,0.29301]
[1735550979812,0.293,3418.9,3418.4,2.0342]
[1735550980014,2.29676614,3419.1,3418.8,3.2078]
[1735550980210,2.58975614,3419.1,3418.8,3.5008]
[1735550980415,0.29299,3419.1,3418.8,3.5008]
[1735550980603,0.29298,3419.1,3418.8,3.5008]
[1735550980812,3.01563614,3419.3,3419.0,0.29298]
[1735550981114,3.01563614,3419.3,3419.1,0.4152]
[1735550981414,0.29297,3419.2,3419.1,0.4152]
[1735550982812,0.4259,3419.3,3419.1,0.4152]
[1735550982813,0.71887,3419.3,3419.1,0.4152]
[1735550984017,0.29297,3419.2,3419.1,0.4152]
[1735550988026,0.4259,3419.3,3419.1,0.4152]
[1735550988226,0.4259,3419.3,3419.1,0.70818]
[1735550988430,0.71887,3419.3,3419.1,0.70818]
[1735550989421,0.71887,3419.3,3419.1,0.4152]
[1735550992226,0.29297,3419.2,3419.1,0.4152]
[1735550994221,0.4259,3419.3,3419.0,3.2078]
[1735550994527,0.29298,3419.1,3419.0,3.2078]
[1735550995926,2.72266614,3419.3,3418.8,0.293]
[1735550996227,0.29299,3419.0,3418.8,0.293]
[1735550998036,2.29676614,3419.2,3418.7,1.45801]
[1735550998333,0.293,3418.9,3418.7,1.45801]
[1735550998538,0.4314,3419.1,3418.7,1.45801]
[1735550998732,0.29301,3418.8,3418.7,1.165]
[1735550999534,0.4314,3419.1,3418.6,3.6362]
[1735550999730,0.4551,3418.7,3418.6,3.92922]
[1735550999924,0.29301,3418.9,3418.7,0.29301]
[1735551000732,0.4551,3419.0,3418.8,2.33951848]
[1735551000933,2.58974614,3419.2,3419.0,0.29299]
[1735551001241,2.58974614,3419.2,3419.0,3.2078]
[1735551001536,0.29298,3419.1,3419.0,3.2078]
[1735551001934,2.74396614,3419.3,3418.6,7.30934465]
[1735551002131,0.29298,3419.2,3419.0,0.29298]
[1735551002632,2.74396614,3419.3,3418.9,3.50079]
[1735551002841,0.29298,3419.2,3418.9,3.50079]
[1735551003343,0.29299,3419.1,3418.9,3.2078]
[1735551003836,0.29299,3419.0,3418.9,3.2078]
[1735551004833,0.29299,3419.1,3418.9,3.2078]
[1735551005035,0.29299,3419.1,3418.9,3.5008]
[1735551005934,3.2078,3419.0,3418.5,6.88094465]
[1735551006136,3.50082,3418.6,3418.5,6.88094465]
[1735551006738,0.4171,3418.8,3418.5,6.88094465]
[1735551006936,0.29302,3418.7,3418.5,6.88094465]
[1735551007135,3.73816921,3418.7,3418.4,0.70673]
[1735551007939,0.29303,3418.6,3418.4,0.4137]
[1735551009040,0.4155,3418.7,3418.4,0.4137]
[1735551009240,0.29303,3418.5,3418.4,0.4137]
[1735551010139,0.29304,3418.4,3418.2,1.5799]
[1735551012035,0.29305,3418.3,3418.2,0.4149]
[1735551012245,0.4494,3418.3,3418.0,3.2078]
[1735551012534,0.29307,3418.1,3418.0,10.08874465]
[1735551013945,0.29307,3418.1,3418.0,3.2078]
[1735551014945,0.2931,3417.7,3417.6,7.33704465]
[1735551015245,0.2931,3417.7,3417.6,0.4561]
[1735551016541,0.2931,3417.7,3417.6,0.74921]
[1735551016742,0.2931,3417.7,3417.6,0.4561]
[1735551017540,0.2931,3417.7,3417.6,0.74921]
[1735551018746,3.1941507,3418.2,3417.7,0.2931]
[1735551018747,0.29307,3418.1,3417.7,0.2931]
[1735551018948,0.29309,3417.8,3417.7,0.2931]
[1735551019642,3.1941507,3418.2,3417.6,0.4561]
[1735551020153,0.29308,3418.0,3417.9,0.29308]
[1735551020342,3.1941507,3418.2,3417.7,2.33951848]
[1735551020647,2.2996507,3418.2,3418.1,0.29307]
[1735551021140,2.2996507,3418.2,3418.1,1.17997]
[1735551021347,2.2996507,3418.2,3418.1,2.34597]
[1735551022049,2.29479033,3418.8,3418.7,0.29302]
[1735551022345,2.29479033,3418.8,3418.7,3.50082]
[1735551023951,4.4865,3419.5,3419.4,0.29296]
[1735551024148,4.77945,3419.5,3419.3,0.29296]
[1735551024453,4.4865,3419.5,3419.4,0.29296]
[1735551024841,0.4141,3419.5,3419.4,0.29296]
[1735551025946,0.8718,3419.8,3419.7,0.29293]
[1735551026149,1.16472,3419.8,3419.7,0.29293]
[1735551026347,0.8718,3419.8,3419.7,0.29293]
[1735551028049,0.8718,3419.8,3419.3,0.4528]
[1735551028256,1.16472,3419.8,3419.6,0.29293]
[1735551029452,1.16472,3419.8,3419.7,0.29293]
[1735551029854,0.8718,3419.8,3419.6,0.29294]
[1735551030046,0.8718,3419.8,3419.3,0.4528]
[1735551030247,0.29293,3419.7,3419.3,0.4528]
[1735551030443,1.16473,3419.8,3419.6,0.29293]
[1735551030953,1.16473,3419.8,3419.3,0.4528]
[1735551030954,0.8718,3419.8,3419.3,0.4528]
[1735551031257,0.29294,3419.6,3419.4,0.29295]
[1735551031456,0.29295,3419.5,3419.3,0.29296]
[1735551031757,3.2078,3419.6,3419.3,0.29296]
[1735551032056,0.29295,3419.5,3419.3,0.29296]
[1735551032654,3.2078,3419.6,3419.0,0.4346]
[1735551032851,3.2078,3419.6,3419.5,0.29295]
[1735551033556,3.50074,3419.6,3419.5,0.29295]
[1735551034456,3.50074,3419.6,3419.0,0.4346]
[1735551034457,0.8718,3419.8,3419.1,3.2078]
[1735551034769,0.29294,3419.6,3419.4,0.29295]
[1735551034969,0.42,3419.8,3419.2,2.33951848]
[1735551035267,0.42,3419.8,3419.7,0.29293]
[1735551035862,0.29293,3419.7,3419.1,3.2078]
[1735551036061,0.42,3419.8,3419.1,3.2078]
[1735551036262,0.4478,3419.6,3419.4,0.29295]
[1735551036462,0.4478,3419.6,3419.1,3.2078]
[1735551036768,0.29296,3419.4,3419.3,0.29296]
[1735551036967,0.29297,3419.2,3419.1,3.2078]
[1735551037269,0.29299,3419.0,3418.9,6.90675292]
[1735551038062,0.72929,3419.0,3418.9,6.90675292]
[1735551038268,0.4363,3419.0,3418.9,7.19975292]
[1735551038467,0.4363,3419.0,3418.9,0.293]
[1735551040174,0.4197,3419.1,3419.0,0.29299]
[1735551040466,0.4509,3419.8,3418.9,5.54731848]
[1735551040661,0.4509,3419.8,3419.7,0.29293]
[1735551043271,0.4509,3419.8,3419.4,0.4275]
[1735551043472,0.74383,3419.8,3419.7,0.29293]
[1735551044573,0.4509,3419.8,3419.3,4.3728]
[1735551044873,0.29296,3419.4,3419.3,4.3728]
[1735551045173,0.29296,3419.4,3419.3,3.2078]
[1735551046672,0.29296,3419.4,3418.5,4.3728]
[1735551046673,3.2078,3419.4,3418.5,4.3728]
[1735551046881,0.29302,3418.6,3418.5,3.50083]
[1735551047070,0.29302,3418.6,3418.5,3.2078]
[1735551047672,0.29304,3418.4,3418.3,6.90675292]
[1735551047874,2.33951848,3418.7,3418.1,0.29307]
[1735551047875,0.29306,3418.3,3418.1,0.29307]
[1735551048175,0.29306,3418.2,3418.1,0.29307]
[1735551048375,0.73435,3418.3,3418.1,0.29307]
[1735551048671,0.73435,3418.3,3418.2,0.29306]
[1735551048876,0.4413,3418.3,3418.2,0.29306]
[1735551049577,0.449,3418.5,3418.4,0.29304]
[1735551050375,0.449,3418.5,3418.4,3.50084]
[1735551050577,0.4532,3418.8,3418.4,3.2078]
[1735551050777,0.4532,3418.8,3418.7,0.29302]
[1735551051276,0.72139,3419.0,3418.8,0.29301]
[1735551051477,0.72139,3419.0,3418.8,3.50081]
[1735551052175,0.4284,3419.0,3418.3,3.2078]
[1735551052377,0.29304,3418.4,3418.3,3.2078]
[1735551052573,0.29305,3418.3,3418.2,0.4394]
[1735551052774,0.4262,3418.3,3418.2,0.73245]
[1735551053083,0.29306,3418.2,3418.1,0.29307]
[1735551053279,0.71326,3418.2,3418.0,6.90675292]
[1735551053572,0.71326,3418.2,3418.1,0.29307]
[1735551053977,0.71326,3418.2,3418.0,7.19982292]
[1735551054180,0.71326,3418.2,3418.0,0.29307]
[1735551054474,0.71326,3418.2,3417.9,1.6022]
[1735551054677,0.71326,3418.2,3418.1,0.29307]
[1735551055881,0.4202,3418.2,3417.9,1.6022]
[1735551056179,0.29307,3418.1,3418.0,0.29308]
[1735551056474,0.4202,3418.2,3417.8,3.2078]
[1735551056675,0.29308,3417.9,3417.8,3.2078]
[1735551057482,0.29308,3417.9,3417.8,3.50089]
[1735551057781,0.29308,3417.9,3417.8,3.2078]
[1735551058984,0.29308,3417.9,3417.7,0.2931]
[1735551059182,0.4202,3418.2,3417.7,0.2931]
[1735551059679,0.29309,3417.9,3417.7,0.2931]
[1735551059868,0.4202,3418.2,3417.7,0.2931]
[1735551060075,0.29309,3417.8,3417.7,0.2931]
[1735551060274,0.4202,3418.2,3417.7,0.2931]
[1735551060475,0.29309,3417.8,3417.4,3.2078]
[1735551060778,0.29309,3417.8,3417.7,0.2931]
[1735551061078,0.29309,3417.9,3417.7,0.2931]
[1735551061274,0.4202,3418.2,3417.7,0.2931]
[1735551061581,0.29309,3417.8,3417.7,0.2931]
[1735551062175,0.29309,3417.9,3417.8,0.29309]
[1735551062370,0.29307,3418.1,3417.4,3.2078]
[1735551062576,0.29307,3418.1,3418.0,0.29308]
[1735551063175,0.4262,3418.3,3418.2,0.29306]
[1735551063383,0.71925,3418.3,3418.2,0.29306]
[1735551063972,0.4262,3418.3,3418.2,0.29306]
[1735551064683,0.29302,3418.7,3418.5,0.29303]
[1735551065076,3.50082,3418.6,3418.5,0.29303]
[1735551065275,3.2078,3418.6,3418.5,0.29303]
[1735551065683,0.4232,3418.8,3418.4,3.2078]
[1735551065979,0.4232,3418.8,3418.6,0.29302]
[1735551065980,0.29302,3418.7,3418.6,0.29302]
[1735551066582,0.74142,3418.7,3418.6,0.29302]
[1735551067085,0.29303,3418.5,3418.4,3.2078]
[1735551067288,0.4484,3418.7,3418.6,0.29302]
[1735551067479,0.71621,3418.8,3418.7,0.29302]
[1735551067480,0.4232,3418.8,3418.7,0.29302]
[1735551068583,0.4251,3419.1,3418.5,0.43]
[1735551068776,0.8722,3419.1,3419.0,0.29299]
[1735551069577,1.16518,3419.1,3419.0,0.29299]
[1735551069979,0.29299,3419.0,3418.9,0.293]
[1735551070277,1.16519,3419.1,3419.0,0.29299]
[1735551070686,0.8722,3419.1,3418.8,3.2078]
[1735551071182,0.8722,3419.1,3419.0,0.29299]
[1735551071584,1.16518,3419.1,3419.0,0.29299]
[1735551073186,0.8722,3419.1,3419.0,0.29299]
[1735551075088,0.4471,3419.1,3419.0,0.29299]
[1735551075987,0.29299,3419.0,3418.9,0.29299]
[1735551076895,0.29299,3419.0,3418.8,3.2078]
[1735551076896,0.74009,3419.1,3419.0,0.29299]
[1735551077395,0.29299,3419.0,3418.9,0.293]
[1735551077589,0.74009,3419.1,3419.0,0.29299]
[1735551078087,0.4471,3419.1,3418.8,3.2078]
[1735551078287,0.293,3419.0,3418.9,0.293]
[1735551078691,0.4471,3419.1,3418.8,3.2078]
[1735551078899,0.7124,3418.9,3418.8,3.2078]
[1735551079198,0.29304,3418.4,3418.2,10.11455292]
[1735551080195,0.29307,3418.1,3418.0,0.29307]
[1735551081896,0.8762,3418.2,3417.8,3.2078]
[1735551082195,0.29308,3418.0,3417.9,0.29308]
[1735551083698,0.29307,3418.1,3417.9,0.29308]
[1735551083898,0.29308,3418.0,3417.9,0.29308]
[1735551085004,0.8762,3418.2,3417.8,0.29309]
[1735551085005,0.29309,3417.9,3417.8,0.29309]
[1735551085207,0.8762,3418.2,3417.7,3.2078]
[1735551085696,0.8762,3418.2,3417.8,0.29309]
[1735551085697,0.29308,3417.9,3417.8,0.29309]
[1735551085898,0.29308,3418.0,3417.9,0.29308]
[1735551087203,0.29309,3417.8,3417.7,3.2078]
[1735551087405,0.29309,3417.8,3417.7,3.5009]
[1735551088106,0.8762,3418.2,3417.8,0.29309]
[1735551088107,0.29309,3417.9,3417.8,0.29309]
[1735551090203,0.8762,3418.2,3417.7,3.2078]
[1735551090409,0.29309,3417.8,3417.7,3.5009]
[1735551090900,0.29309,3417.9,3417.7,3.5009]
[1735551091096,0.29309,3417.9,3417.7,3.2078]
[1735551091296,0.29309,3417.9,3417.8,0.29309]
[1735551092100,0.8762,3418.2,3418.1,0.29307]
[1735551092298,0.4274,3418.3,3418.0,3.2078]
[1735551092494,0.4274,3418.3,3418.2,0.29306]
[1735551092900,0.4274,3418.3,3418.1,0.4542]
[1735551092901,3.43968595,3418.4,3418.3,0.29305]
[1735551093497,3.43968595,3418.4,3418.1,0.4542]
[1735551093701,0.29306,3418.3,3418.2,0.29305]
[1735551093907,0.29305,3418.4,3418.3,0.29305]
[1735551094705,0.4186,3418.6,3418.0,3.2078]
[1735551094897,0.4186,3418.6,3417.8,4.59277862]
[1735551095097,0.29305,3418.3,3418.2,0.29305]
[1735551095708,0.4186,3418.6,3417.9,0.4536]
[1735551095903,0.4186,3418.6,3418.5,0.29303]
[1735551096200,0.71162,3418.6,3418.1,4.3768]
[1735551096408,0.29303,3418.5,3418.4,0.29304]
[1735551096905,0.29304,3418.5,3418.4,0.29304]
[1735551097209,0.29304,3418.5,3418.1,4.3768]
[1735551097210,0.29305,3418.4,3418.3,0.29305]
[1735551098509,3.50084,3418.5,3418.4,0.29304]
[1735551098806,3.2078,3418.5,3418.1,1.169]
[1735551099113,0.29306,3418.2,3418.1,1.46206]
[1735551099608,0.29305,3418.4,3418.3,0.29305]
[1735551100113,3.2078,3418.5,3418.1,1.169]
[1735551100114,0.29306,3418.2,3418.1,1.169]
[1735551100910,0.4437,3418.3,3418.1,1.169]
[1735551101411,6.64748595,3418.5,3418.1,1.169]
[1735551101706,0.4198,3418.4,3418.3,0.29305]
[1735551101907,0.4198,3418.4,3418.1,1.169]
[1735551101908,6.64748595,3418.5,3418.1,1.169]
[1735551102106,3.43968595,3418.5,3418.4,0.29304]
[1735551102606,3.43968595,3418.7,3418.6,0.29302]
[1735551103704,3.2078,3419.0,3418.9,0.293]
[1735551107511,0.4394,3419.1,3419.0,0.29299]
[1735551112513,0.4394,3419.1,3418.9,0.293]
[1735551112711,0.455,3419.0,3418.9,0.293]
[1735551114915,0.74799,3419.0,3418.9,0.293]
[1735551115110,0.455,3419.0,3418.5,3.2078]
[1735551115313,0.29302,3418.6,3418.5,3.50083]
[1735551115513,0.29302,3418.6,3418.5,3.2078]
[1735551118820,0.71575,3418.3,3418.2,0.29306]
[1735551120516,0.29306,3418.2,3418.1,0.4559]
[1735551120732,0.29306,3418.2,3417.9,3.2078]
[1735551120733,0.29308,3418.0,3417.9,3.2078]
[1735551120932,0.29309,3417.8,3417.7,4.59899501]
[1735551121134,0.29309,3417.8,3417.7,4.89209501]
[1735551121439,0.29309,3417.8,3417.7,4.59899501]
[1735551121840,4.38035,3418.2,3417.6,0.29311]
[1735551122141,0.4488,3417.7,3417.6,0.29311]
[1735551122740,0.29311,3417.6,3417.5,0.4145]
[1735551122937,3.2078,3418.6,3417.6,0.73278]
[1735551123241,0.8348,3418.2,3418.1,0.29307]
[1735551123443,1.12786,3418.2,3418.1,0.29307]
[1735551125439,0.8348,3418.2,3418.1,0.29307]
[1735551126945,1.12786,3418.2,3418.1,0.29307]
[1735551128143,0.29307,3418.1,3418.0,0.4224]
[1735551128440,0.73627,3418.1,3418.0,0.4224]
[1735551128640,0.73627,3418.1,3418.0,0.71548]
[1735551129144,0.4432,3418.1,3417.6,0.2931]
[1735551129339,0.2931,3417.7,3417.6,0.2931]
[1735551130144,0.29311,3417.6,3417.5,0.29312]
[1735551130339,0.4292,3417.6,3417.5,0.29312]
[1735551130541,0.4292,3417.6,3417.4,3.6497]
[1735551130748,0.72232,3417.6,3417.5,0.29312]
[1735551131454,0.72231,3417.6,3417.5,0.29312]
[1735551131744,0.4292,3417.6,3417.5,0.29312]
[1735551132047,0.72231,3417.6,3417.5,0.29312]
[1735551132641,0.4292,3417.6,3417.5,0.29312]
[1735551132849,0.72231,3417.6,3417.5,0.29312]
[1735551133047,1.57331,3417.6,3417.5,0.29312]
[1735551133344,1.2802,3417.6,3417.5,0.29312]
[1735551134945,1.57331,3417.6,3417.5,0.29312]
[1735551135144,1.2802,3417.6,3417.5,0.29312]
[1735551135347,1.57331,3417.6,3417.5,0.29312]
[1735551135951,1.2802,3417.6,3417.5,0.29312]
[1735551142156,1.2802,3417.6,3417.4,3.6497]
[1735551142356,1.57331,3417.6,3417.5,0.29312]
[1735551143558,1.2802,3417.6,3417.5,0.29312]
[1735551143951,1.57331,3417.6,3417.5,0.29312]
[1735551145753,1.2802,3417.6,3417.5,0.29312]
[1735551146155,1.57331,3417.6,3417.5,0.29312]
[1735551146953,1.2802,3417.6,3417.5,0.29312]
[1735551148257,1.57331,3417.6,3417.5,0.29312]
[1735551149256,1.2802,3417.6,3417.5,0.29312]
[1735551149855,1.57331,3417.6,3417.5,0.29312]
[1735551151665,1.2802,3417.6,3417.4,3.6497]
[1735551151957,1.2802,3417.6,3417.4,3.94282]
[1735551152555,0.29312,3417.5,3417.4,3.94282]
[1735551153062,1.2802,3417.6,3417.5,0.29312]
[1735551153957,1.57331,3417.6,3417.5,0.29312]
[1735551157059,1.2802,3417.6,3417.5,0.29312]
[1735551157963,1.57331,3417.6,3417.5,0.29312]
[1735551158459,1.2802,3417.6,3417.5,0.29312]
[1735551159263,2.29715891,3417.8,3417.4,8.25583641]
[1735551159468,2.29715891,3417.8,3417.7,0.2931]
[1735551160066,1.54698,3418.0,3417.9,0.29308]
[1735551161762,4.99438878,3418.0,3417.9,0.29308]
[1735551161957,4.70130878,3418.0,3417.5,4.60650641]
[1735551162465,0.29311,3417.7,3417.6,0.29311]
[1735551163058,4.70130878,3418.0,3417.5,4.60650641]
[1735551163272,2.29997602,3417.7,3417.6,4.60650641]
[1735551163566,2.59308602,3417.7,3417.6,4.60650641]
[1735551164975,2.59308602,3417.7,3417.6,4.89961641]
[1735551165275,0.29311,3417.7,3417.5,0.29311]
[1735551166375,2.59406444,3417.7,3417.6,4.6106387]
[1735551166674,0.2931,3417.8,3417.7,0.2931]
[1735551166972,1.2539,3418.0,3417.4,3.6497]
[1735551167273,1.2539,3418.0,3417.6,4.90350463]
[1735551167274,2.30104446,3417.7,3417.6,4.90350463]
[1735551168969,2.59412446,3417.9,3417.8,0.29309]
[1735551169671,2.30104446,3417.9,3417.8,0.29309]
[1735551170175,2.59412446,3417.9,3417.8,0.29309]
[1735551170470,2.59412446,3417.9,3417.8,4.90342519]
[1735551170871,0.29308,3417.9,3417.8,0.29309]
[1735551172978,0.29308,3417.9,3417.8,7.21019503]
[1735551173372,0.29308,3417.9,3417.8,6.91710503]
[1735551174276,8.09759547,3418.4,3417.8,6.91710503]
[1735551174277,8.06130778,3419.0,3418.7,0.29302]
[1735551174474,8.06130778,3419.0,3418.7,7.00633848]
[1735551175382,8.06130778,3419.0,3418.7,4.66682]
[1735551175582,2.30465353,3419.3,3418.7,19.45930884]
[1735551175876,2.30465353,3419.3,3419.2,0.29297]
[1735551177078,2.30465353,3419.8,3419.7,0.29293]
[1735551178385,3.2078,3420.0,3419.9,0.29291]
[1735551178774,2.74645353,3420.1,3419.9,0.29291]
[1735551178982,3.03935353,3420.1,3419.9,0.29291]
[1735551179683,2.74645353,3420.1,3420.0,0.2929]
[1735551179886,0.4418,3420.1,3420.0,0.2929]
[1735551181385,0.4418,3420.1,3419.6,1.166]
[1735551181386,0.7347,3420.1,3419.6,1.166]
[1735551181585,0.4418,3420.1,3419.4,3.2078]
[1735551181781,0.29297,3419.2,3419.1,4.59424462]
[1735551182090,0.29297,3419.2,3419.1,3.90824462]
[1735551182777,0.29299,3419.1,3418.9,0.29299]
[1735551183480,3.2078,3419.0,3418.4,0.29304]
[1735551183679,0.29304,3418.5,3418.3,7.18441693]
[1735551183880,0.4499,3418.4,3418.3,7.18441693]
[1735551184083,0.4499,3418.4,3418.3,0.29305]
[1735551184796,0.4499,3418.4,3417.9,6.89136693]
[1735551184989,0.29308,3418.0,3417.9,6.89136693]
[1735551185182,0.29306,3418.2,3418.0,0.29307]
[1735551185378,0.88,3418.3,3418.0,0.29307]
[1735551185586,0.29307,3418.1,3417.9,0.29308]
[1735551186386,3.50086,3418.2,3418.0,0.29308]
[1735551187987,0.29307,3418.1,3418.0,0.29308]
[1735551188384,3.2078,3418.2,3418.0,0.29308]
[1735551188385,3.50087,3418.2,3418.0,0.29308]
[1735551188589,3.50087,3418.2,3417.5,2.33951848]
[1735551188590,0.29308,3418.0,3417.8,0.29309]
[1735551188894,0.29308,3417.9,3417.7,0.2931]
[1735551189689,0.29308,3417.9,3417.4,1.182]
[1735551189991,0.29307,3418.1,3417.9,0.29308]
[1735551190194,0.29308,3418.0,3417.8,0.29309]
[1735551191390,0.29308,3418.0,3417.5,2.33951848]
[1735551191581,0.29308,3418.0,3417.8,0.29309]
[1735551192089,0.29308,3417.9,3417.5,2.33951848]
[1735551192296,0.29308,3417.9,3417.8,0.29309]
[1735551192690,0.29308,3418.0,3417.8,0.29309]
[1735551193591,0.29308,3418.0,3417.4,1.182]
[1735551193892,0.29308,3418.0,3417.8,0.29309]
[1735551194496,0.29308,3417.9,3417.8,0.29309]
[1735551194794,0.29308,3418.0,3417.8,0.29309]
[1735551195298,0.29308,3418.0,3417.9,0.29308]
[1735551195592,0.29308,3417.9,3417.8,0.29309]
[1735551195892,0.29308,3418.0,3417.8,0.29309]
[1735551196697,0.29308,3417.9,3417.8,0.29309]
[1735551196898,3.2078,3418.2,3417.8,0.29309]
[1735551197294,0.29308,3417.9,3417.8,0.29309]
[1735551198000,0.29308,3418.0,3417.9,0.29308]
[1735551198589,0.29308,3417.9,3417.8,0.29309]
[1735551198789,0.29308,3418.0,3417.9,0.29308]
[1735551200295,0.88,3418.3,3417.4,3.52151848]
[1735551200598,0.88,3418.3,3418.2,0.29306]
[1735551200599,1.17305,3418.3,3418.2,0.29306]
[1735551201591,1.17305,3418.3,3417.7,0.73276]
[1735551201592,0.29306,3418.2,3418.1,0.29306]
[1735551202594,0.88,3418.3,3417.6,3.2078]
[1735551202796,0.29306,3418.2,3418.0,0.29307]
[1735551202997,0.88,3418.3,3418.2,0.29306]
[1735551204000,3.2078,3418.6,3418.5,0.29303]
[1735551204189,3.50082,3418.6,3418.5,0.29303]
[1735551204391,3.2078,3418.6,3418.5,0.29303]
[1735551204792,3.50082,3418.6,3418.5,0.29303]
[1735551205895,3.2078,3418.6,3418.5,0.29303]
[1735551206093,0.4425,3419.0,3418.3,2.33951848]
[1735551206094,3.6503,3419.0,3418.3,2.33951848]
[1735551206298,2.30465353,3419.1,3418.6,2.33951848]
[1735551206492,2.30465353,3419.1,3419.0,0.29299]
[1735551207904,0.43,3419.4,3418.7,1.18645]
[1735551207905,0.43,3419.4,3419.3,0.29296]
[1735551208402,4.0576,3419.6,3419.5,0.29295]
[1735551208906,3.2078,3419.6,3419.5,0.29295]
[1735551211301,0.418,3419.9,3419.4,0.452]
[1735551211610,2.30465353,3420.1,3420.0,0.2929]
[1735551212403,2.30465353,3420.1,3419.5,1.16317]
[1735551212404,5.51245353,3420.2,3420.1,0.2929]
[1735551213306,5.80534353,3420.2,3420.1,0.2929]
[1735551213605,5.80534353,3420.2,3420.0,0.2929]
[1735551213801,3.50069,3420.2,3419.5,0.4308]
[1735551214001,3.50069,3420.2,3420.1,0.2929]
[1735551214504,3.2078,3420.2,3420.1,0.2929]
[1735551215705,3.50069,3420.2,3420.1,0.2929]
[1735551217010,3.2078,3420.2,3420.1,0.2929]
[1735551217509,2.48407295,3420.8,3420.0,4.3818]
[1735551217510,0.4226,3420.7,3420.0,4.3818]
[1735551217710,0.4226,3420.7,3420.6,0.29285]
[1735551218912,0.4226,3420.7,3420.1,0.4129]
[1735551219105,0.4226,3420.7,3420.5,0.29286]
[1735551219306,0.71545,3420.7,3420.5,0.29286]
[1735551219514,0.4226,3420.7,3420.1,0.4129]
[1735551219810,0.29287,3420.4,3420.0,4.3818]
[1735551220009,0.29287,3420.5,3420.3,0.29288]
[1735551221114,0.29287,3420.4,3420.2,0.29288]
[1735551221306,0.29287,3420.4,3420.3,0.29288]
[1735551222012,0.29286,3420.5,3420.4,0.29287]
[1735551222207,0.29286,3420.5,3420.0,4.3818]
[1735551222208,0.29286,3420.5,3420.3,0.29288]
[1735551222403,0.4226,3420.7,3420.0,4.3818]
[1735551222610,0.71545,3420.7,3420.6,0.29285]
[1735551222800,0.4226,3420.7,3420.6,0.29285]
[1735551223003,0.4226,3420.7,3420.0,5.11406]
[1735551223004,3.2078,3420.8,3420.0,4.3818]
[1735551223213,0.29287,3420.5,3420.4,0.29287]
[1735551224512,0.29287,3420.5,3420.3,0.29288]
[1735551224708,0.29288,3420.4,3420.2,0.29288]
[1735551224900,0.29288,3420.3,3420.1,0.29289]
[1735551225106,0.8564,3420.2,3420.1,0.29289]
[1735551225302,0.8564,3420.2,3420.0,3.2078]
[1735551225504,0.8564,3420.2,3419.6,3.2078]
[1735551225702,0.29293,3419.7,3419.6,3.2078]
[1735551225902,0.29293,3419.7,3419.6,3.50074]
[1735551226106,0.29293,3419.7,3419.6,3.2078]
[1735551226306,0.29293,3419.7,3419.6,3.50074]